bitfinex/quotes_ETHUSD_20250403
["timestamp","ask_amount","ask_price","bid_price","bid_amount"]
[1743706748756,0.7585,1789.5,1789.3,5.58876]
[1743706748956,0.7658,1789.7,1789.5,5.588]
[1743706749267,0.7658,1789.7,1789.6,5.58784]
[1743706749758,3.8163,1789.9,1789.6,11.17568]
[1743706749957,0.8163,1789.9,1789.7,5.58747]
[1743706750187,0.05,1789.9,1789.8,5.58721]
[1743706750556,0.05,1789.9,1789.8,5.6430764]
[1743706751065,0.05,1789.9,1789.8,5.58721]
[1743706752273,0.05,1789.9,1789.8,5.64307642]
[1743706752501,0.05,1789.9,1789.8,5.58721]
[1743706753678,0.05,1789.9,1789.7,5.58739]
[1743706753877,0.7663,1789.7,1789.4,5.58837]
[1743706754078,12.68054453,1789.7,1789.4,5.58837]
[1743706754472,5.57883253,1789.7,1789.5,5.58804]
[1743706754802,5.57883253,1789.7,1789.5,11.17606]
[1743706754986,5.57883253,1789.7,1789.6,5.58784]
[1743706755169,0.7663,1789.7,1789.6,5.58784]
[1743706755370,5.788,1789.8,1789.7,5.58752]
[1743706755571,3.8269,1789.9,1789.8,5.58721]
[1743706756598,0.8269,1789.9,1789.8,5.58721]
[1743706756811,0.05,1789.9,1789.8,5.58721]
[1743706757183,0.8028,1789.9,1789.7,11.17479]
[1743706757388,0.8028,1789.9,1789.8,5.58721]
[1743706757695,0.05,1789.9,1789.8,5.58721]
[1743706757907,0.05,1789.9,1789.8,6.76053921]
[1743706758108,0.05,1789.9,1789.8,6.70467]
[1743706758488,0.05,1789.9,1789.8,7.45747]
[1743706758808,0.05,1789.9,1789.8,8.00747]
[1743706759197,0.05,1789.9,1789.8,6.70467]
[1743706761519,0.05,1789.9,1789.8,6.76053054]
[1743706761689,0.05,1789.9,1789.8,8.02237]
[1743706762912,11.55643253,1790.6,1790.4,5.58525]
[1743706763103,3.0,1790.5,1790.4,5.58525]
[1743706764237,3.0,1790.5,1790.3,5.58555]
[1743706764396,3.0,1790.5,1790.4,5.58534]
[1743706764822,3.0,1790.5,1790.3,5.58555]
[1743706765306,3.0,1790.5,1790.3,11.17107]
[1743706765493,3.0,1790.5,1790.4,5.58534]
[1743706765960,3.8263,1790.5,1790.3,5.58552]
[1743706766652,3.8263,1790.5,1790.3,11.17106]
[1743706766836,3.8263,1790.5,1790.3,11.17105]
[1743706767021,3.8263,1790.5,1790.3,5.58552]
[1743706767220,3.8263,1790.5,1790.3,11.17102]
[1743706767411,3.8263,1790.5,1790.3,5.5855]
[1743706767843,8.63883253,1790.5,1790.3,5.5855]
[1743706768039,10.65718778,1790.5,1790.2,5.58592]
[1743706768208,8.63883253,1790.5,1790.2,5.58592]
[1743706768418,18.98301253,1790.5,1790.1,5.58612]
[1743706768619,0.7675,1790.4,1790.1,5.58612]
[1743706768842,0.7675,1790.4,1790.2,5.58579]
[1743706769220,0.7675,1790.4,1790.2,11.17159]
[1743706769419,0.7675,1790.4,1790.2,5.58579]
[1743706770454,0.8277,1790.2,1790.0,5.58653]
[1743706770767,0.8277,1790.0,1789.7,11.17493]
[1743706771425,4.81253253,1789.9,1789.7,5.58741]
[1743706771651,0.8021,1789.8,1789.7,11.17482]
[1743706771948,3.8021,1790.0,1789.8,5.58721]
[1743706772332,3.8021,1790.0,1789.8,5.58712]
[1743706772750,0.829,1789.8,1789.7,5.58752]
[1743706772928,0.829,1789.8,1789.6,5.58782]
[1743706773129,0.829,1789.8,1789.6,11.1755]
[1743706773516,0.829,1789.8,1789.6,5.58768]
[1743706773939,0.829,1789.8,1789.6,11.17538]
[1743706774145,0.829,1789.8,1789.7,5.58752]
[1743706774525,4.81253253,1789.9,1789.7,11.17504]
[1743706774823,4.81253253,1789.9,1789.8,5.58721]
[1743706775040,0.7663,1789.8,1789.5,5.58804]
[1743706775243,4.81253253,1789.7,1789.5,5.58804]
[1743706775754,0.7506,1789.6,1789.5,5.58815]
[1743706776335,3.0,1789.7,1789.6,5.58784]
[1743706782927,3.0,1789.7,1789.5,5.58801]
[1743706782928,3.8048,1789.9,1789.7,5.58738]
[1743706783130,9.39177,1789.9,1789.6,5.58774]
[1743706783573,3.8048,1789.9,1789.6,5.58771]
[1743706783878,3.8048,1789.9,1789.7,5.58735]
[1743706784241,0.7759,1790.1,1790.0,5.58659]
[1743706784443,17.32943253,1790.3,1790.0,5.58659]
[1743706784666,3.0,1790.2,1790.0,5.58659]
[1743706785029,6.578954,1789.9,1789.7,5.76218552]
[1743706785284,4.81253253,1789.9,1789.7,5.76218552]
[1743706785464,0.8005,1789.8,1789.7,0.17470552]
[1743706785664,15.34771,1789.8,1789.7,0.17470552]
[1743706785847,9.7605,1789.8,1789.7,0.17470552]
[1743706786377,9.7605,1789.8,1789.6,5.5878]
[1743706786583,9.7605,1789.8,1789.5,11.17618]
[1743706786766,9.7605,1789.8,1789.6,5.58779]
[1743706786963,9.7605,1789.8,1789.5,11.17608]
[1743706787182,9.7605,1789.8,1789.5,5.58804]
[1743706788104,9.7605,1789.8,1789.5,11.17603]
[1743706788280,6.41795,1789.6,1789.3,5.76337552]
[1743706788453,4.81253253,1789.5,1789.3,5.76337552]
[1743706788659,10.59253253,1789.5,1789.3,5.76337552]
[1743706788870,10.59253253,1789.5,1789.3,0.17470552]
[1743706788871,16.55253253,1789.5,1789.3,0.17470552]
[1743706789082,0.7846,1789.4,1789.3,0.17470552]
[1743706789453,0.7846,1789.4,1789.2,5.58896]
[1743706789658,0.7846,1789.4,1789.1,11.17868]
[1743706789883,0.7846,1789.4,1789.1,12.296548]
[1743706790087,0.7846,1789.4,1789.2,5.589]
[1743706790482,0.7846,1789.4,1789.2,5.58898]
[1743706790689,11.74,1789.5,1789.3,5.58877]
[1743706791196,11.74,1789.5,1789.2,5.58894]
[1743706791403,22.14073253,1789.5,1789.2,6.3404708]
[1743706791612,4.81253253,1789.3,1789.1,5.58934]
[1743706792256,4.81253253,1789.3,1789.1,11.1786]
[1743706792586,0.8222,1789.4,1789.1,11.17852]
[1743706792886,6.41068,1789.4,1789.1,5.58926]
[1743706793088,0.8222,1789.4,1789.2,5.58898]
[1743706793253,0.8222,1789.4,1789.1,5.58928]
[1743706793451,4.81253253,1789.3,1789.1,5.58928]
[1743706793656,4.81253253,1789.3,1789.0,5.58964]
[1743706793657,0.8222,1789.2,1789.0,5.58964]
[1743706794188,0.8222,1789.2,1789.0,11.17921]
[1743706794491,0.8222,1789.2,1789.0,5.58957]
[1743706794788,0.8222,1789.2,1789.1,5.5894]
[1743706795184,0.8222,1789.2,1789.0,6.148527]
[1743706795484,0.8222,1789.2,1788.8,0.17478031]
[1743706795659,0.8222,1789.2,1788.8,0.23067519]
[1743706795853,0.8222,1789.2,1789.0,5.58954]
[1743706796075,3.8222,1789.2,1788.9,5.58996]
[1743706796281,3.8222,1789.2,1789.0,5.58962]
[1743706796481,3.8222,1789.2,1789.0,5.58958]
[1743706796788,3.8222,1789.2,1788.9,5.58995]
[1743706796990,9.41143,1789.2,1788.9,5.58995]
[1743706798452,9.41143,1789.2,1788.8,5.59026]
[1743706798453,4.81253253,1789.1,1788.8,5.59026]
[1743706798656,10.40206253,1789.1,1788.8,5.59026]
[1743706798857,16.18206253,1789.1,1788.8,5.59026]
[1743706799690,0.7752,1789.0,1788.8,5.59031]
[1743706800055,0.7752,1789.0,1788.8,5.59021]
[1743706800409,0.7752,1789.0,1788.9,5.59002]
[1743706800707,0.7752,1789.0,1788.8,5.59021]
[1743706801099,5.96,1789.1,1788.9,5.58979]
[1743706801392,40.6855834,1789.6,1789.4,5.58846]
[1743706801561,11.74,1789.7,1789.6,5.58784]
[1743706801756,11.74,1789.7,1789.4,7.514713]
[1743706801987,16.55253253,1789.7,1789.4,1.117723]
[1743706802165,0.8097,1789.4,1789.2,5.58898]
[1743706802695,3.8097,1789.4,1789.2,5.58898]
[1743706802995,3.8097,1789.4,1789.2,5.58894]
[1743706803167,9.35826,1789.4,1789.1,5.58935]
[1743706803491,3.0,1789.2,1788.7,1.06164548]
[1743706803789,4.81253253,1788.9,1788.7,5.87006548]
[1743706803956,3.0,1789.3,1788.8,0.05590185]
[1743706804155,14.36778,1789.3,1788.9,5.58996]
[1743706804360,3.0,1789.1,1788.9,5.58991]
[1743706804612,3.0,1789.1,1789.0,5.58971]
[1743706804818,3.0,1789.1,1788.9,6.789999]
[1743706805110,10.40234253,1789.0,1788.6,5.59092]
[1743706805316,15.99235253,1789.0,1788.6,5.59092]
[1743706805466,3.0,1788.9,1788.6,5.59092]
[1743706805667,3.0,1788.9,1788.6,5.76573903]
[1743706806114,3.7599,1788.9,1788.6,5.76562903]
[1743706806285,3.7599,1788.9,1788.6,0.23072309]
[1743706806485,3.7599,1788.9,1788.7,11.18094]
[1743706806726,3.0,1788.9,1788.7,6.7259859]
[1743706806897,3.0,1788.9,1788.8,5.59033]
[1743706807499,3.0,1788.9,1788.7,6.7259859]
[1743706807682,3.0,1788.9,1788.7,5.59041]
[1743706808701,3.0,1788.9,1788.7,11.18093]
[1743706808879,3.0,1788.9,1788.8,5.59033]
[1743706809334,11.52793253,1789.1,1788.9,5.58988]
[1743706809485,3.42964313,1789.2,1788.8,5.59033]
[1743706809686,0.7837,1789.0,1788.7,5.59059]
[1743706809886,0.7837,1789.0,1788.8,5.59033]
[1743706810118,0.7837,1789.0,1788.9,5.59002]
[1743706810631,10.40102253,1789.4,1788.9,5.59002]
[1743706810632,6.5822,1789.6,1789.2,5.58891]
[1743706810847,16.98273253,1789.6,1789.2,5.58891]
[1743706811074,16.98272253,1789.6,1789.2,11.17788]
[1743706811372,22.57075253,1789.6,1789.2,6.706688]
[1743706811666,16.98272253,1789.6,1789.2,12.295628]
[1743706811877,9.862951,1789.2,1788.8,5.76509504]
[1743706812160,4.81253253,1789.0,1788.8,0.17480504]
[1743706812376,4.81253253,1789.0,1788.7,5.5906]
[1743706812516,21.95233253,1789.0,1788.6,5.59091]
[1743706812719,5.57933253,1788.8,1788.3,0.8029]
[1743706813029,5.57933253,1788.8,1788.1,0.05]
[1743706813030,11.17108253,1788.4,1788.1,0.05]
[1743706813331,5.96,1788.4,1788.3,5.5919]
[1743706813654,3.0,1788.5,1788.3,5.59173]
[1743706813854,7.81253253,1788.5,1788.2,5.59219]
[1743706814218,15.38596478,1788.5,1788.1,5.64247]
[1743706814540,5.63923253,1788.3,1788.1,0.05]
[1743706815134,11.23127253,1788.3,1788.1,0.05]
[1743706815650,5.63923253,1788.3,1788.1,0.05]
[1743706815974,3.8267,1788.3,1788.1,0.05]
[1743706816169,0.8267,1788.3,1788.2,5.59221]
[1743706816481,9.37086,1788.6,1788.2,5.59221]
[1743706816657,3.7799,1788.6,1788.4,5.59146]
[1743706816970,9.37093,1788.6,1788.1,6.206522]
[1743706817172,0.7632,1788.4,1788.1,11.23466]
[1743706817406,0.7632,1788.4,1788.1,11.23464]
[1743706817610,0.7632,1788.4,1788.2,5.59204]
[1743706817905,0.7632,1788.4,1788.1,5.64238]
[1743706818278,6.7232,1788.4,1788.1,5.64238]
[1743706818496,6.7232,1788.4,1788.2,5.59214]
[1743706818662,6.7232,1788.4,1788.2,11.18411]
[1743706818977,6.7232,1788.4,1788.2,11.18416]
[1743706819162,9.7232,1788.4,1788.2,5.59205]
[1743706819596,15.31482,1788.4,1788.1,5.64248]
[1743706819896,5.5919,1788.3,1788.1,0.05]
[1743706820190,9.39021,1788.2,1788.1,0.05]
[1743706820566,17.04500015,1788.2,1788.1,0.05]
[1743706821212,11.51920015,1788.2,1788.1,0.05]
[1743706821361,11.93581784,1788.2,1788.1,0.05]
[1743706821561,15.39530798,1788.2,1788.1,0.05]
[1743706823413,4.24376484,1788.2,1788.1,0.05]
[1743706823573,0.02914715,1788.2,1788.1,5.64252]
[1743706823774,0.02914715,1788.2,1788.1,5.69844226]
[1743706823978,0.02914715,1788.2,1788.1,6.44532]
[1743706824212,0.02914715,1788.2,1788.1,7.649131]
[1743706824705,0.02914715,1788.2,1788.1,6.846331]
[1743706828113,0.02914715,1788.2,1788.1,5.64252]
[1743706830325,0.02914715,1788.2,1788.1,6.49784238]
[1743706830527,0.02914715,1788.2,1788.1,6.44192]
[1743706830681,0.02914715,1788.2,1788.1,6.49783816]
[1743706830880,0.02914715,1788.2,1788.1,6.44192]
[1743706831113,0.02914715,1788.2,1788.1,7.645382]
[1743706831488,0.02914715,1788.2,1788.1,8.195382]
[1743706832280,0.02914715,1788.2,1788.1,5.69843124]
[1743706832641,0.02914715,1788.2,1788.1,5.64252]
[1743706835602,0.83084715,1788.2,1788.1,0.05]
[1743706836328,0.83084715,1788.2,1788.1,5.64252]
[1743706836819,0.83084715,1788.2,1788.1,0.05]
[1743706837217,0.83084715,1788.2,1788.1,5.64252]
[1743706837592,0.02914715,1788.2,1788.1,5.64252]
[1743706838591,4.83786707,1788.2,1788.1,0.05]
[1743706839607,9.58411807,1788.2,1788.1,0.05]
[1743706839809,8.27676507,1788.2,1788.1,0.05]
[1743706840019,19.31744438,1788.2,1788.1,0.05]
[1743706841087,13.72523438,1788.2,1788.1,0.05]
[1743706841305,8.64956707,1788.2,1788.1,0.05]
[1743706841498,10.65623107,1788.2,1788.1,0.05]
[1743706841693,16.24844107,1788.2,1788.1,0.05]
[1743706841898,14.24177707,1788.2,1788.1,0.05]
[1743706842118,17.78844107,1788.2,1788.1,0.05]
[1743706842317,24.62263128,1788.2,1788.1,0.05]
[1743706844314,30.58263128,1788.2,1788.1,0.05]
[1743706844698,5.59396,1787.7,1787.5,0.17491229]
[1743706844893,16.96400992,1787.6,1787.5,0.17491229]
[1743706845223,34.10371906,1787.6,1787.5,0.17491229]
[1743706845892,25.27645906,1787.6,1787.5,0.17491229]
[1743706846096,5.80914715,1787.6,1787.5,5.76931229]
[1743706846511,5.80914715,1787.6,1787.5,6.3784]
[1743706847102,11.39796707,1787.6,1787.4,0.03772761]
[1743706847310,16.99208707,1787.6,1787.4,0.03772761]
[1743706847715,12.18336715,1787.6,1787.4,0.03772761]
[1743706847940,6.58924715,1787.6,1787.4,0.03772761]
[1743706848126,5.80914715,1787.6,1787.4,0.03772761]
[1743706848320,5.80914715,1787.6,1787.4,5.63232761]
[1743706848721,5.80914715,1787.6,1787.4,0.03772761]
[1743706848902,12.19373715,1787.6,1787.4,0.03772761]
[1743706849104,13.97248886,1787.6,1787.4,0.03772761]
[1743706849304,8.37829886,1787.6,1787.4,0.03772761]
[1743706849515,13.97238886,1787.6,1787.4,0.03772761]
[1743706850347,9.3848,1787.5,1787.4,0.03772761]
[1743706850505,30.244283,1787.5,1787.4,0.03772761]
[1743706850711,24.4266669,1787.5,1787.4,0.03772761]
[1743706851649,3.02914715,1787.5,1787.4,5.63243761]
[1743706851947,0.02914715,1787.5,1787.4,5.68838071]
[1743706852154,0.02914715,1787.5,1787.4,6.38383761]
[1743706852654,0.02914715,1787.5,1787.4,6.98977181]
[1743706852809,0.02914715,1787.5,1787.4,8.19230379]
[1743706853704,5.96,1788.3,1788.0,6.41124]
[1743706854147,11.55206,1788.3,1788.0,6.41124]
[1743706854451,5.96,1788.3,1788.1,5.59235]
[1743706854811,4.648211,1788.2,1788.0,6.41112]
[1743706855012,11.5519,1788.3,1788.0,5.59272]
[1743706855216,14.45783604,1788.3,1787.9,11.18611]
[1743706855546,14.45783604,1788.3,1787.9,5.59299]
[1743706855736,14.45783604,1788.3,1787.9,11.18603]
[1743706856341,5.59222,1788.2,1787.9,5.59299]
[1743706856649,14.45783604,1788.3,1788.0,5.59284]
[1743706857151,8.86593604,1788.3,1788.0,11.18557]
[1743706857351,5.96,1788.3,1788.1,5.59248]
[1743706857546,5.96,1788.3,1788.0,5.59273]
[1743706857751,5.96,1788.3,1788.0,5.59271]
[1743706858054,5.59235,1788.2,1787.9,5.59302]
[1743706858275,0.7761,1788.1,1787.8,5.5933]
[1743706858569,0.7761,1788.1,1787.8,11.18667]
[1743706858717,0.7761,1788.1,1787.8,5.5933]
[1743706859049,11.37195,1788.0,1787.7,5.59363]
[1743706859254,11.37195,1788.0,1787.7,11.18729]
[1743706859450,0.7615,1787.8,1787.5,5.59423]
[1743706859954,1.18567186,1787.8,1787.6,5.59396]
[1743706860154,0.7615,1787.8,1787.6,5.59396]
[1743706860353,0.02914238,1787.7,1787.6,11.18795]
[1743706860653,0.02914238,1787.7,1787.6,5.59396]
[1743706860854,0.02914238,1787.7,1787.5,5.59433]
[1743706861077,0.02914238,1787.7,1787.5,5.59428]
[1743706861353,0.02914238,1787.7,1787.6,6.35709]
[1743706862256,0.02914238,1787.7,1787.6,6.90709]
[1743706863267,0.02914238,1787.7,1787.6,7.08198583]
[1743706863675,0.02914238,1787.7,1787.6,7.25688565]
[1743706864048,0.02914238,1787.7,1787.6,7.37221071]
[1743706864274,0.02914238,1787.7,1787.6,8.7811691]
[1743706864768,2.38e-06,1787.7,1787.6,8.7811691]
[1743706865071,40.289,1788.4,1788.3,5.5919]
[1743706865072,3.0,1788.4,1788.3,5.5919]
[1743706865379,1.23696541,1788.5,1788.3,5.5919]
[1743706865542,1.23696541,1788.5,1788.2,6.42248]
[1743706865741,1.23696541,1788.5,1788.2,12.01454]
[1743706866254,3.0,1788.4,1788.2,5.59206]
[1743706866474,3.0,1788.5,1788.3,5.5919]
[1743706866643,5.779,1788.6,1788.4,5.59159]
[1743706866835,6.7567,1788.7,1788.4,5.59159]
[1743706866836,5.96,1788.7,1788.6,5.59096]
[1743706867169,5.96,1788.7,1788.4,11.93648]
[1743706867475,11.55073,1788.7,1788.4,5.59145]
[1743706867659,10.9230504,1788.5,1788.2,5.59217]
[1743706867968,11.496089,1788.2,1788.1,0.17489982]
[1743706868172,0.8026,1788.2,1788.1,0.17489982]
[1743706868336,1.41602404,1788.2,1788.1,0.17489982]
[1743706868534,1.41602404,1788.2,1788.0,5.59274]
[1743706868771,5.5927,1788.1,1787.6,0.17489982]
[1743706868970,22.6623404,1788.1,1787.8,5.59346]
[1743706869340,22.6623404,1788.1,1787.6,5.76892982]
[1743706869545,0.7626,1787.9,1787.6,5.76892982]
[1743706869974,0.7626,1787.9,1787.4,0.03772761]
[1743706869975,9.0942404,1787.9,1787.4,0.21262743]
[1743706870272,3.7626,1787.9,1787.7,5.5936]
[1743706870648,3.0,1787.9,1787.7,5.5936]
[1743706871275,8.5932,1787.9,1787.6,5.59407]
[1743706871473,10.2384304,1787.9,1787.5,11.1887]
[1743706871844,4.6452304,1787.9,1787.6,5.59393]
[1743706872146,11.0624904,1787.9,1787.6,5.59393]
[1743706872975,5.4693304,1787.9,1787.6,5.59393]
[1743706873179,12.0656404,1788.1,1787.7,0.0559352]
[1743706873375,3.0,1788.0,1787.8,5.59323]
[1743706874041,3.0,1788.0,1787.7,5.59375]
[1743706874367,6.39588,1787.8,1787.5,5.59434]
[1743706874874,7.594802,1787.8,1787.5,5.59429]
[1743706875266,7.594802,1787.8,1787.6,5.59393]
[1743706875267,2.001322,1787.8,1787.6,5.59393]
[1743706876111,2.001322,1787.8,1787.6,11.18785]
[1743706876262,3.8045,1788.0,1787.7,5.59377]
[1743706876458,5.59335,1787.9,1787.5,5.59435]
[1743706876677,5.59346,1787.8,1787.5,5.59435]
[1743706876991,5.59346,1787.8,1787.5,5.76927544]
[1743706877195,1.118681,1787.8,1787.5,11.36352544]
[1743706877480,9.39737,1788.0,1787.6,5.59406]
[1743706877646,9.39737,1788.0,1787.7,5.59377]
[1743706877841,3.0,1788.0,1787.7,5.59362]
[1743706878041,8.778,1788.0,1787.8,5.59336]
[1743706878279,5.778,1788.0,1787.8,11.18667]
[1743706878657,5.778,1788.0,1787.9,5.59315]
[1743706879668,5.778,1788.0,1787.8,5.59331]
[1743706879894,12.54473,1788.0,1787.7,5.59367]
[1743706880284,5.778,1788.0,1787.7,5.59361]
[1743706880499,5.778,1788.0,1787.8,11.18664]
[1743706880804,5.778,1788.0,1787.8,5.5933]
[1743706881408,5.778,1788.0,1787.9,5.59315]
[1743706881879,12.5294,1788.6,1788.5,5.59127]
[1743706882084,5.96,1788.6,1788.5,5.59127]
[1743706882293,6.5694,1789.0,1788.7,5.5904]
[1743706882491,10.76962301,1789.1,1788.8,5.5902]
[1743706882694,4.80962301,1789.1,1788.9,5.58984]
[1743706882904,10.76962301,1789.3,1789.0,5.58957]
[1743706883091,5.96,1789.3,1789.2,5.58909]
[1743706883293,5.777,1789.5,1789.2,11.17799]
[1743706883479,7.3944493,1789.5,1789.2,11.17799]
[1743706883805,6.5709,1789.7,1789.4,5.58821]
[1743706884025,12.15859,1789.7,1789.3,11.17738]
[1743706884225,12.15859,1789.7,1789.3,5.58865]
[1743706884924,5.776,1789.7,1789.1,6.33939]
[1743706885207,5.776,1789.7,1789.4,5.58833]
[1743706885425,0.05,1789.9,1789.6,5.58768]
[1743706885577,0.05,1789.9,1789.7,5.58749]
[1743706885776,0.05,1789.9,1789.7,5.58735]
[1743706886447,0.05,1789.9,1789.8,5.64307719]
[1743706886750,0.05,1789.9,1789.7,11.17471]
[1743706886902,0.05,1789.9,1789.7,5.58735]
[1743706887111,0.05,1789.9,1789.7,11.17467]
[1743706887836,0.05,1789.9,1789.7,5.58732]
[1743706888035,0.05,1789.9,1789.8,5.58721]
[1743706888237,0.05,1789.9,1789.8,6.13721]
[1743706888438,0.05,1789.9,1789.8,8.090963]
[1743706890504,40.273,1790.8,1790.0,6.40379]
[1743706890707,5.773,1790.7,1790.5,5.58473]
[1743706891208,40.273,1790.8,1790.5,5.58473]
[1743706891407,40.273,1790.8,1790.4,5.58524]
[1743706891408,51.63013,1790.8,1790.4,5.58524]
[1743706891635,57.23723982,1790.8,1790.4,5.58524]
[1743706891842,57.23723982,1790.8,1790.4,11.17037]
[1743706892139,57.23723982,1790.8,1790.4,5.58513]
[1743706892343,51.65310982,1790.8,1790.4,11.17035]
[1743706892641,51.65310982,1790.8,1790.5,5.58502]
[1743706893139,51.65310982,1790.8,1790.6,5.58469]
[1743706893436,5.773,1790.8,1790.6,5.58456]
[1743706893606,8.773,1790.8,1790.7,5.5844]
[1743706893809,0.05,1790.9,1790.8,5.58409]
[1743706896451,0.05,1790.9,1790.6,5.58458]
[1743706896662,0.7705,1790.7,1790.3,5.58546]
[1743706896959,3.0,1790.8,1790.5,5.58473]
[1743706897159,3.0,1790.8,1790.5,11.16959]
[1743706897347,3.0,1790.8,1790.5,5.58473]
[1743706897549,14.54414,1790.8,1790.0,0.7721]
[1743706897750,14.54414,1790.8,1790.5,5.58502]
[1743706897954,17.28484739,1790.8,1790.5,5.58502]
[1743706898150,8.96,1790.8,1790.5,11.17004]
[1743706898351,8.96,1790.8,1790.6,5.58471]
[1743706899034,8.96,1790.8,1790.6,11.16928]
[1743706899254,8.96,1790.8,1790.6,11.16917]
[1743706899644,8.96,1790.8,1790.6,5.58457]
[1743706899866,8.96,1790.8,1790.7,5.5844]
[1743706900064,0.05,1790.9,1790.8,5.58409]
[1743706900269,3.05,1790.9,1790.8,5.58409]
[1743706900566,0.05,1790.9,1790.8,5.58409]
[1743706900971,0.05,1790.9,1790.8,6.13409]
[1743706901168,0.05,1790.9,1790.8,5.58409]
[1743706901336,0.05,1790.9,1790.8,7.4464257]
[1743706901683,0.05,1790.9,1790.8,7.9964257]
[1743706901837,0.05,1790.9,1790.8,8.05225235]
[1743706902238,0.05,1790.9,1790.8,7.9964257]
[1743706903348,0.05,1790.9,1790.8,7.50225245]
[1743706903552,0.05,1790.9,1790.8,7.4464257]
[1743706904512,0.8042,1790.9,1790.7,5.58427]
[1743706905373,0.05,1790.9,1790.8,6.38209]
[1743706906383,0.05,1790.9,1790.8,6.93209]
[1743706907098,0.05,1790.9,1790.8,6.98791109]
[1743706907392,0.05,1790.9,1790.8,6.93209]
[1743706907588,0.05,1790.9,1790.8,7.394153]
[1743706907761,0.05,1790.9,1790.8,5.58409]
[1743706907963,0.05,1790.9,1790.7,5.58427]
[1743706908207,6.3816,1790.8,1790.5,5.58498]
[1743706908362,6.3816,1790.8,1790.4,5.58522]
[1743706908562,8.31814393,1790.7,1790.2,5.58596]
[1743706908768,8.31814393,1790.7,1790.0,0.8117]
[1743706908769,11.93751,1790.4,1790.0,6.39817]
[1743706909076,12.11788,1790.4,1790.0,11.17289]
[1743706909758,5.58566,1790.3,1789.9,5.58689]
[1743706909954,11.17153,1790.3,1789.9,5.58689]
[1743706910411,5.58661,1790.0,1789.6,5.5876]
[1743706910588,5.766,1789.9,1789.6,6.14636]
[1743706910765,0.7944,1789.8,1789.6,0.55876]
[1743706910963,6.38172,1789.8,1789.4,11.1766]
[1743706911161,5.766,1789.7,1789.5,5.58798]
[1743706911384,5.766,1789.7,1789.5,5.58796]
[1743706911584,6.5604,1789.8,1789.6,5.58771]
[1743706911825,6.5604,1789.8,1789.5,5.58811]
[1743706911987,6.5604,1789.8,1789.5,6.705766]
[1743706912189,6.5604,1789.8,1789.6,5.58762]
[1743706912391,5.766,1789.8,1789.7,5.58752]
[1743706912615,11.726,1790.0,1789.7,5.58752]
[1743706912892,17.31261,1790.0,1789.5,6.705776]
[1743706913084,6.40431,1789.9,1789.5,5.58812]
[1743706913283,0.8173,1789.9,1789.6,5.58781]
[1743706913483,0.8173,1789.9,1789.7,5.58742]
[1743706913684,0.8173,1789.9,1789.7,11.17478]
[1743706913885,0.8173,1789.9,1789.8,5.58721]
[1743706914287,5.96,1790.0,1789.8,11.17422]
[1743706914515,5.96,1790.0,1789.8,1.117422]
[1743706914697,5.96,1790.0,1789.7,11.1749]
[1743706915044,5.96,1790.0,1789.6,0.7658]
[1743706915045,5.96,1790.0,1789.8,5.5872]
[1743706915249,0.8173,1790.5,1789.9,0.7658]
[1743706915430,0.8173,1790.7,1790.4,11.1703]
[1743706915733,3.8173,1790.7,1790.4,5.58509]
[1743706916253,9.40174,1790.7,1790.4,5.58509]
[1743706916838,9.40174,1790.7,1790.3,5.58561]
[1743706917143,5.58478,1790.6,1790.3,5.58561]
[1743706917824,5.58478,1790.6,1790.2,5.58584]
[1743706918028,5.58478,1790.6,1790.2,11.17164]
[1743706918229,5.58478,1790.6,1790.3,5.58561]
[1743706918630,0.8173,1790.7,1790.4,5.58532]
[1743706919435,6.40171,1790.7,1790.4,5.58532]
[1743706919734,5.58479,1790.6,1790.3,5.76027227]
[1743706919936,5.58479,1790.6,1790.3,5.58564]
[1743706920141,0.8173,1790.7,1790.2,0.17466227]
[1743706920338,0.02914476,1790.5,1790.4,5.58523]
[1743706920518,0.02914476,1790.5,1790.3,5.58565]
[1743706920713,0.02914476,1790.5,1790.4,5.58534]
[1743706921037,0.02914476,1790.5,1790.2,0.77870798]
[1743706921344,0.7762,1790.2,1790.1,0.27955479]
[1743706921559,14.51454,1790.2,1790.1,0.45421149]
[1743706921711,14.54368476,1790.2,1790.1,0.45421149]
[1743706922035,16.78464476,1790.2,1790.1,0.45421149]
[1743706922416,25.37060476,1790.2,1790.1,0.45421149]
[1743706922619,28.99804463,1790.2,1790.1,0.45421149]
[1743706922810,29.00994463,1790.2,1790.1,0.45421149]
[1743706923241,29.00994463,1790.2,1789.5,6.17016407]
[1743706923242,0.7881,1789.9,1789.5,6.17016407]
[1743706923438,5.766,1789.8,1789.6,5.58771]
[1743706923625,5.766,1789.8,1789.5,11.75800407]
[1743706923626,5.79514476,1789.8,1789.5,11.75800407]
[1743706923833,5.79514476,1789.8,1789.6,5.5878]
[1743706924143,5.79514476,1789.8,1789.7,5.58752]
[1743706924844,5.79514476,1789.8,1789.5,12.42879041]
[1743706925243,5.79514476,1789.8,1789.5,6.84070041]
[1743706925550,0.7679,1789.7,1789.5,5.58801]
[1743706925911,0.02914476,1789.6,1789.5,5.58801]
[1743706926315,5.58846,1789.4,1789.3,0.17474063]
[1743706926509,6.598,1789.4,1789.3,0.17474063]
[1743706926759,16.92969476,1789.4,1789.3,0.17474063]
[1743706926914,6.62714476,1789.4,1789.3,0.17474063]
[1743706927337,6.62714476,1789.4,1789.1,0.27958501]
[1743706927338,6.62714476,1789.4,1789.1,5.58938]
[1743706927544,6.62714476,1789.4,1789.1,5.58925]
[1743706927863,6.62714476,1789.4,1789.0,0.17474063]